Cogmind - Beta 12 @@@ ROGUE MODE // 2023.04.26 @ 03:19:29 Player: Ms Vella Result: Destroyed by Y-54 Guardian with Flak Gun Performance ------------- Evolutions (3) 1500 Regions Visited (5) 1000 Robots Destroyed (147) 735 Value Destroyed (5384) 5384 Prototype IDs (12) 240 Alien Tech Used (0) 0 Bonus (999) 999 TOTAL SCORE: 9858 Bonus ------- High Alert Combat Kills 999 Cogmind --------- Core Integrity 0/700 Matter 269/300 Energy 100/100 System Corruption 34% Temperature Warm (128) Movement Walking (260) Ox2 Location -7/Storage Parts ------- > --- POWER (1) -------- (None) > --- PROPULSION (3) --- Aluminum Leg Aluminum Leg > --- UTILITY (7) ------ High-capacity Storage Unit Machine Analyzer Improved Signal Interpreter Weapon Cycler > --- WEAPON (2) ------- Gauss Cannon > --- INVENTORY (20) --- Aluminum Leg Aluminum Leg Coolant Injector High-capacity Storage Unit High-capacity Battery (250) High-capacity Battery (250) Compact Matter Pod (150) Improved Sensor Array Improved Sensor Array Improved Signal Interpreter Graphene Brace Recalibrator Cooled Particle Cannon Cooled Particle Cannon Advanced EMP Blaster Mini Grenade Launcher Peak State ------------ > --- POWER ------------ Reinforced Deuterium Engine > --- PROPULSION ------- Armored Treads Medium Treads Medium Treads > --- UTILITY ---------- Improved Heat Sink Improved Heat Sink High-capacity Storage Unit Machine Analyzer Improved Signal Interpreter Improved Targeting Computer Hacking Suite > --- WEAPON ----------- Cooled Particle Cannon Cooled Particle Cannon > --- INVENTORY -------- Improved Titanium Leg Improved Titanium Leg Improved Titanium Leg Coolant Injector High-capacity Storage Unit High-capacity Battery High-capacity Battery Compact Matter Pod Improved Sensor Array Improved Sensor Array Improved Signal Interpreter Weapon Cycler Weapon Cycler Graphene Brace Recalibrator Heavy Ion Cannon Cooled Particle Cannon Cooled Particle Cannon Gauss Cannon Mini Grenade Launcher [Rating: 50] Favorites ----------- Power Ion Engine Engine Ion Engine Power Core Nuclear Core Propulsion Titanium Leg Treads Medium Treads Leg Titanium Leg Utility High-capacity Storage Unit Device Improved Heat Sink Storage High-capacity Storage Unit Processor Machine Analyzer Hackware Hacking Suite Protection Light Armor Plating Weapon Autogun Energy Gun Heavy Particle Gun Energy Cannon Heavy Particle Cannon Ballistic Gun Autogun Ballistic Cannon Gauss Cannon Launcher Missile Launcher Build | -11 -10 -9 -8 -7 -7 ------- Run | Jun Mat Mat Mat Fac Sto Slots Evolved 6 | . . 2 2 2 . Power . | . . . . . . Propulsion 1 | . . 1 . . . Utility 5 | . . 1 2 2 . Weapon . | . . . . . . Parts Attached 144 | 2 16 27 50 36 13 Power 17 | 1 3 3 6 4 . Engine 13 | 1 3 3 4 2 . Core 4 | . . . 2 2 . Reactor . | . . . . . . Propulsion 36 | . 5 5 12 7 7 Treads 5 | . . . 2 3 . Leg 31 | . 5 5 10 4 7 Wheel . | . . . . . . Hover . | . . . . . . Flight . | . . . . . . Utility 39 | . 3 11 8 14 3 Device 13 | . 1 2 3 5 2 Storage 5 | . 2 1 1 1 . Processor 4 | . . 1 1 2 . Hackware 2 | . . . . 2 . Protection 15 | . . 7 3 4 1 Artifact . | . . . . . . Weapon 52 | 1 5 8 24 11 3 Energy Gun 9 | . 1 . 5 3 . Energy Cannon 18 | . 1 4 7 5 1 Ballistic Gun 12 | 1 2 2 7 . . Ballistic Cannon 2 | . . . . 1 1 Launcher 11 | . 1 2 5 2 1 Special Weapon . | . . . . . . Impact Weapon . | . . . . . . Slashing Weapon . | . . . . . . Piercing Weapon . | . . . . . . Special Melee Weapon . | . . . . . . Unidentified Prototypes 7 | . . 2 3 1 1 Corrupted Parts 3 | . . . 1 1 1 System Corruption 23 | . . . 3 10 10 Parts Lost 53 | . 2 6 16 15 14 Power 6 | . . 1 2 2 1 Propulsion 20 | . 2 . 6 7 5 Utility 16 | . . 3 4 4 5 Weapon 11 | . . 2 4 2 3 Highest Loss Streak 10 | . 1 1 7 9 10 To Critical Strikes 1 | . . . . 1 . Average Slot Usage (%) 92 | . 97 99 86 90 81 Engine 7 | . 14 11 6 1 5 Core 2 | . . . 2 5 . Treads 1 | . . . . 2 2 Leg 24 | . 27 32 25 15 18 Device 10 | . 11 5 12 13 8 Storage 9 | . 14 11 9 7 7 Processor 9 | . . 8 6 16 19 Protection 7 | . . 8 7 10 1 Energy Gun 3 | . 7 . 3 5 . Energy Cannon 7 | . 2 10 5 8 7 Ballistic Gun 7 | . 17 10 6 . . Naked Turns . | . . . . . . Heaviest Build 91 | 14 53 58 73 76 91 Greatest Support 76 | 20 26 51 51 76 76 Greatest Overweight (x) 5 | . 2 1 2 5 3 Average Overweight (x) 1 | . 1 1 1 1 . Largest Inventory Capacity 20 | 8 20 20 20 20 20 Average Capacity 19 | 8 16 20 20 20 20 Most Carried 20 | 5 17 20 20 20 20 Average Carried 17 | 2 9 19 17 18 17 Final Capacity 20 | 8 20 20 20 20 20 Final Carried 20 | . 15 20 20 20 16 Class Distribution -------------------- 84% | Mutant 12% | Scavenger-Mutant 3% | Skirmisher Dominant Class ---------------- Mutant | -10/Materials Mutant | -9/Materials Mutant | -8/Materials Mutant | -7/Factory Mutant | -7/Storage Resources | -11 -10 -9 -8 -7 -7 ----------- Run | Jun Mat Mat Mat Fac Sto Matter Collected 2926 | 200 365 595 994 438 334 Remotely . | . . . . . . Salvage Created 6008 | . 498 1423 1858 1377 852 Parts 305 | . 35 94 92 53 31 Haulers Intercepted 4 | . 1 1 2 . . Recyclers Shooed 4 | . 1 . 1 . 2 Parts Field Recycled . | . . . . . . Retrieved Matter . | . . . . . . Parts Self-Destructed . | . . . . . . Prevented . | . . . . . . Kills | -11 -10 -9 -8 -7 -7 ------- Run | Jun Mat Mat Mat Fac Sto Combat Hostiles Destroyed 126 | . 13 31 46 20 16 Melee 1 | . . . 1 . . Guns 32 | . 10 10 8 4 . Cannons 50 | . . 12 13 12 13 AOE 41 | . 3 9 23 3 3 Classes Destroyed 16 | . 6 4 3 3 . Worker 3 | . . 1 2 . . Builder 4 | . . . 3 1 . Hauler 4 | . 1 1 2 . . Recycler 7 | . 1 1 2 2 1 Mechanic 2 | . . 1 1 . . Operator 5 | . 1 1 2 1 . Watcher 1 | . 1 . . . . Swarmer 17 | . 6 4 7 . . Grunt 75 | . 7 17 30 10 11 Brawler 4 | . . . 2 2 . Duelist 2 | . . 1 1 . . Sentry 20 | . . 9 5 2 4 Specialist 2 | . . . . 2 . Hunter 2 | . . . 1 1 . Programmer 3 | . . . . 2 1 Heavy 1 | . . . . 1 . Best Kill Streak 13 | . 4 8 13 5 5 Combat Bots Only 11 | . 3 8 11 4 4 Max Kills in Single Turn 3 | . 2 3 3 1 2 Gunslinging . | . . . . . . Exploded 3 | . 2 3 3 1 2 Melee 1 | . . . 1 . . Uniques/NPCs Destroyed . | . . . . . . Combat | -11 -10 -9 -8 -7 -7 -------- Run | Jun Mat Mat Mat Fac Sto Damage Taken 9331 | . 756 1403 2765 2346 2061 Core 1477 | . 120 209 446 354 348 Absorbed by Shields 58 | . . . 58 . . Redirected to Shielding 105 | . . . 105 . . Regen/Repaired (Parts) 83 | . . 49 34 . . Core Remaining (%) 54 | 100 52 47 18 . . Volleys Fired 385 | . 55 80 119 79 52 Largest 2 | . 2 2 2 2 2 Hottest 180 | . 85 91 112 180 180 Shots Fired 590 | . 108 141 159 109 73 Gun 267 | . 105 61 71 30 . Cannon 277 | . 1 73 66 70 67 Launcher 46 | . 2 7 22 9 6 Special . | . . . . . . Kinetic 206 | . 84 61 40 . 21 Thermal 261 | . 21 26 68 100 46 Explosive 31 | . 2 7 22 . . Electromagnetic 92 | . 1 47 29 9 6 Robot Hit Streak 20 | . 8 20 15 13 12 Robot Miss Streak 9 | . 9 5 3 4 3 Penetration Max 1 | . . . . . 1 Secondary Targets 5 | . 3 . 2 . . Max Gunslinging Chain 1 | . 1 . 1 . . Shots Hit Robots 368 | . 56 91 100 76 45 Core Hits 251 | . 29 54 102 41 25 Critical Kills 1 | . . 1 . . . Critical Parts Destroyed 1 | . 1 . . . . Critical Strikes 6 | . 1 1 1 . 3 Burn 1 | . . . 1 . . Destroy 2 | . 1 1 . . . Blast 3 | . . . . . 3 Melee Attacks . | . . . . . . Impact . | . . . . . . Slashing . | . . . . . . Piercing . | . . . . . . Sneak Attacks . | . . . . . . Combat Hostiles . | . . . . . . Follow-up Attacks . | . . . . . . Damage Inflicted 13725 | . 889 2558 5442 2844 1992 Guns 2545 | . 728 583 823 411 . Cannons 5902 | . . 1046 1223 1972 1661 Explosions 5267 | . 161 923 3391 461 331 Melee . | . . . . . . Ramming 11 | . . 6 5 . . Kinetic 2046 | . 558 583 340 . 565 Thermal 5894 | . 170 665 1455 2465 1139 Explosive 3940 | . 161 628 3151 . . Electromagnetic 1834 | . . 676 491 379 288 Impact . | . . . . . . Slashing . | . . . . . . Piercing . | . . . . . . Highest Corruption 34 | . . . 5 22 34 Average Corruption 10 | . . . 4 14 25 Corruption Purged . | . . . . . . Corruption Blocked . | . . . . . . Effects 119 | . . . 39 53 27 Message Errors 21 | . . . 7 6 8 Matter Fused 29 | . . . 10 16 3 Heat Flow Errors 13 | . . . 6 6 1 Energy Discharges 9 | . . . 6 3 . Parts Rejected 2 | . . . 2 . . Parts Fused 2 | . . . . 2 . Data Loss (minor) 18 | . . . 3 11 4 Data Loss (major) 6 | . . . 3 2 1 Misfires 5 | . . . . 3 2 Alerts 4 | . . . 1 2 1 Misdirections 4 | . . . . 2 2 Weapon Failures 6 | . . . 1 . 5 Overload Shots 37 | . . . . 23 14 Effects 2 | . . . . 1 1 Heat Surge 2 | . . . . 1 1 Overflow Damage 242 | . . 26 153 39 24 Projectiles 115 | . . 25 27 39 24 Explosions 127 | . . 1 126 . . Melee . | . . . . . . Knockbacks 7 | . . . . . 7 Impact . | . . . . . . Kinetic 7 | . . . . . 7 Secondary . | . . . . . . Self-Inflicted Damage 134 | . . . 50 . 84 Shots 7 | . . . 2 . 5 Rammed 1 | . . . 1 . . Targets Rammed 4 | . . 2 2 . . Kicked 3 | . . 2 1 . . Crushed . | . . . . . . Highest Temperature 563 | . 18 224 468 396 563 Average Temperature 100 | . 8 65 82 118 212 Received Heat Transfer 3881 | . 264 540 1409 849 819 Effects 12 | . . . 2 1 9 Shutdowns 3 | . . . 1 . 2 Energy Bleed 3 | . . . . 1 2 Interference 1 | . . . 1 . . Matter Decay 1 | . . . . . 1 Damage (minor) 3 | . . . . . 3 Damage (major) 1 | . . . . . 1 Siege Activations . | . . . . . . Robots Corrupted 1 | . . . 1 . . Combat Hostiles 1 | . . . 1 . . Parts Fried 9 | . . 2 1 3 3 Impact Corruptions . | . . . . . . Robots Melted 1 | . . . . 1 . Combat Hostiles 1 | . . . . 1 . Parts Melted 16 | . . 1 3 11 1 Heat Transferred 8255 | . 407 1016 2235 3270 1327 Parts Sabotaged . | . . . . . . Parts Stolen . | . . . . . . Parts Stripped . | . . . . . . Power Chain Reactions 8 | . . 4 2 1 1 Missiles Intercepted . | . . . . . . Alert | -11 -10 -9 -8 -7 -7 ------- Run | Jun Mat Mat Mat Fac Sto Peak Influence 1280 | . 213 451 1280 582 549 Initial 582 | . . 33 190 582 157 Average 412 | . 99 234 882 395 355 Maximum Alert Level 4 | . 1 2 4 2 2 Low Security (%) 25 | 100 93 32 7 . 13 Level 1 39 | . 6 61 3 56 52 Level 2 17 | . . 6 8 43 34 Level 3 16 | . . . 71 . . Level 4 1 | . . . 8 . . Level 5 . | . . . . . . High Security . | . . . . . . Max Security . | . . . . . . Squads Dispatched 26 | . 2 4 8 8 4 Investigation 4 | . . 1 2 1 . Extermination 3 | . . . . 2 1 Reinforcement 16 | . 2 3 3 5 3 Assault 3 | . . . 3 . . Garrison . | . . . . . . Intercept . | . . . . . . Searches Triggered . | . . . . . . Construction Impeded 2 | . . 1 . . 1 Haulers Reinforced 1 | . . . . . 1 Active Scanning Responses . | . . . . . . Cargo Convoy Interrupts . | . . . . . . Stealth | -11 -10 -9 -8 -7 -7 --------- Run | Jun Mat Mat Mat Fac Sto Distress Signals 7 | . . 2 4 1 . Communications Jammed . | . . . . . . Distress Signals . | . . . . . . Times Spotted 195 | . 19 46 76 35 19 Peak Tracking Total 15 | . 4 8 15 6 4 Tactical Retreats 8 | . 1 2 3 2 . Traps | -11 -10 -9 -8 -7 -7 ------- Run | Jun Mat Mat Mat Fac Sto Traps Triggered 3 | . . 1 1 1 . Indirectly 1 | . . . . 1 . Trap Hack Attempts . | . . . . . . Triggered . | . . . . . . Disarmed . | . . . . . . Reprogrammed . | . . . . . . Reused . | . . . . . . Traps Extracted . | . . . . . . Installed . | . . . . . . Triggered . | . . . . . . Machines | -11 -10 -9 -8 -7 -7 ---------- Run | Jun Mat Mat Mat Fac Sto Machines Disabled 19 | . 2 3 7 5 2 Max in Single Turn 1 | . 1 1 1 1 1 Garrison Access 1 | . . . 1 . . Machines Repaired . | . . . . . . Machines Sabotaged . | . . . . . . Overloaded Fab Kills . | . . . . . . Hacking | -11 -10 -9 -8 -7 -7 --------- Run | Jun Mat Mat Mat Fac Sto Machines Accessed 30 | . 5 6 6 7 6 Terminals 23 | . 5 5 2 6 5 Fabricators 1 | . . . . 1 . Repair Stations 2 | . . 1 1 . . Recycling Units . | . . . . . . Scanalyzers 2 | . . . 2 . . Garrison Access 2 | . . . 1 . 1 Total Hacks 75 | . 12 17 19 16 11 Successful 36 | . 6 11 11 4 4 Failed 39 | . 6 6 8 12 7 Catastrophic 10 | . 1 2 . 5 2 Database Lockouts . | . . . . . . Manual 50 | . 11 14 4 15 6 Terminals 53 | . 12 15 4 13 9 Fabricators 3 | . . . . 3 . Repair Stations 5 | . . 2 3 . . Recycling Units . | . . . . . . Scanalyzers 8 | . . . 8 . . Garrison Access 6 | . . . 4 . 2 Terminal Hacks 16 | . 3 6 1 3 3 Prototype ID Bank 4 | . 2 2 . . . Open Door 2 | . . . . . 2 Open DSF 1 | . . . . 1 . Level Access Points 1 | . . 1 . . . Branch Access Points 4 | . 1 1 1 1 . Unreport Threat 2 | . . . . 1 1 Zone Layout 2 | . . 2 . . . Fabricator Hacks . | . . . . . . Repair Station Hacks 4 | . . 2 2 . . Scan Component 2 | . . 1 1 . . Repair 2 | . . 1 1 . . Recycling Unit Hacks . | . . . . . . Scanalyzer 7 | . . . 7 . . Insert Component 4 | . . . 4 . . Analyze 3 | . . . 3 . . Garrison Access Hacks . | . . . . . . Unauthorized Hacks 9 | . 3 3 1 1 1 Terminals 9 | . 3 3 1 1 1 Botnet 9 | . 3 3 1 1 1 Fabricators . | . . . . . . Repair Stations . | . . . . . . Recycling Units . | . . . . . . Scanalyzers . | . . . . . . Garrison Access . | . . . . . . Data Cores Recovered 1 | . . . . 1 . Used . | . . . . . . Hacking Detections 24 | . 4 4 5 6 5 Full Trace Events 2 | . . . 1 1 . Feedback Events . | . . . . . . Feedback Blocked . | . . . . . . Robot Schematics Acquired . | . . . . . . Robots Built . | . . . . . . Authchips . | . . . . . . Time . | . . . . . . Total Robot Build Rating . | . . . . . . Part Schematics Acquired 3 | . . . 3 . . Parts Built . | . . . . . . Authchips . | . . . . . . Time . | . . . . . . Total Part Build Rating . | . . . . . . Parts Repaired 2 | . . 1 1 . . Time 70 | . . 38 32 . . Parts Recycled . | . . . . . . Recycled Matter . | . . . . . . Retrieved Matter . | . . . . . . Retrieved Components . | . . . . . . Parts Scanalyzed 3 | . . . 3 . . Part Schematics Acquired 3 | . . . 3 . . Parts Damaged . | . . . . . . Bothacking | -11 -10 -9 -8 -7 -7 ------------ Run | Jun Mat Mat Mat Fac Sto Used RIF Installer . | . . . . . . Robots Hacked . | . . . . . . Non-combat . | . . . . . . Combat . | . . . . . . Robot Hacks Applied . | . . . . . . Relay Couplers Released 1 | . . . 1 . . Machine Destruction 1 | . . . 1 . . Fabnet Peak Effective % . | . . . . . . Robots Rewired . | . . . . . . Allies Hacked . | . . . . . . Hacks Repelled . | . . . . . . Allies | -11 -10 -9 -8 -7 -7 -------- Run | Jun Mat Mat Mat Fac Sto Total Allies . | . . . . . . Largest Group . | . . . . . . Highest-Rated Group . | . . . . . . Highest-Rated Ally . | . . . . . . Total Orders . | . . . . . . Ally Attacks . | . . . . . . Total Damage . | . . . . . . Kills . | . . . . . . Allies Corrupted . | . . . . . . Allies Melted . | . . . . . . Intel | -11 -10 -9 -8 -7 -7 ------- Run | Jun Mat Mat Mat Fac Sto Robot Analysis Total . | . . . . . . Derelict Logs Recovered . | . . . . . . Drone Launches . | . . . . . . Drone Recoveries . | . . . . . . Exploration | -11 -10 -9 -8 -7 -7 ------------- Run | Jun Mat Mat Mat Fac Sto Turns Passed 7829 | 7 1030 2477 1763 2124 428 Spaces Moved 2643 | 1 379 756 650 719 138 Core . | . . . . . . Treads 176 | . . . 13 136 27 Legs 2467 | 1 379 756 637 583 111 Wheels . | . . . . . . Hover . | . . . . . . Flight . | . . . . . . Fastest Speed 120 | 120 120 190 190 160 163 Average Speed 208 | 120 208 195 199 233 198 Slowest Speed 470 | 120 260 200 270 470 330 Overloaded Moves . | . . . . . . Propulsion Burnouts . | . . . . . . Robots Hopped . | . . . . . . Cave-ins Triggered . | . . . . . . Exploration Rate (%) 41 | 2 71 58 59 25 31 Regions Visited 5 Branch Regions 1 Pre-discovered Areas . | . . . . . . Known Exits Taken 2 | . . 1 . 1 . Unknown Exits Taken 3 | 1 1 . 1 . . Scrap Searched . | . . . . . . Spaces Dug . | . . . . . . Terrain Destroyed 236 | . 13 52 143 7 21 Melee . | . . . . . . Projectile 26 | . . . 3 5 18 AOE 210 | . 13 52 140 2 3 Terrain Rammed . | . . . . . . Walls Destroyed . | . . . . . . Machines Disabled . | . . . . . . Actions | -11 -10 -9 -8 -7 -7 --------- Run | Jun Mat Mat Mat Fac Sto Total 4377 | 8 511 1624 957 1055 222 Wait 1024 | . 30 722 83 187 2 Move 2638 | . 378 755 649 718 138 Hop . | . . . . . . Pick Up 92 | . 19 21 26 17 9 Fast Attach 43 | . 5 4 19 13 2 Attach 41 | . 1 6 16 11 7 Detach 6 | . . . 3 2 1 Swap 60 | 2 10 17 15 12 4 Drop 84 | 6 13 17 25 16 7 Fire 385 | . 55 80 119 79 52 Melee . | . . . . . . Ram . | . . . . . . Kick 3 | . . 2 1 . . Crush 1 | . . . 1 . . Escape Stasis . | . . . . . . Rewire . | . . . . . . Trap . | . . . . . . Miscellaneous . | . . . . . . Route ------- -11/Junkyard -10/Materials (discovered 2 exits: *Mat / *Min) -9/Materials (discovered 4 exits: *Mat x3 / Min) -8/Materials -7/Factory (discovered 4 exits: *Sto x2 / *Low x2) -7/Storage History --------- Turn | Location | Event 8 | -11/Junkyard | Discovered new exit (range 0) 8 | -11/Junkyard | Entered Materials 670 | -10/Materials | Discovered new exit (range 13) 762 | -10/Materials | Build established: Mutant 788 | -10/Materials | Identified exit to Mines 975 | -10/Materials | Discovered new exit (range 13) 1038 | -10/Materials | Entered another Materials area 1038 | -9/Materials | Evolved 2 slots: Propulsion x1, Utility x1 1238 | -9/Materials | Discovered new exit (range 15) 1247 | -9/Materials | Destroyed 8 combat bots 2928 | -9/Materials | Identified exit to Mines 3060 | -9/Materials | Repaired Titanium Leg 3423 | -9/Materials | Core integrity fell below 50% 3481 | -9/Materials | Identified exit to Materials 3515 | -9/Materials | Entered another Materials area 3515 | -8/Materials | Evolved 2 slots: Utility x2 3843 | -8/Materials | Lost 4 parts (2n1u1w) 4004 | -8/Materials | Destroyed 11 combat bots 4088 | -8/Materials | Lost 7 parts (1p2n2u2w) 4180 | -8/Materials | Core integrity fell below 50% 4415 | -8/Materials | Repaired Mni. Grenade Launcher 5115 | -8/Materials | First assault squad dispatched 5185 | -8/Materials | Discovered new exit (range 15) 5208 | -8/Materials | Core integrity fell below 20% 5235 | -8/Materials | Destroyed 8 combat bots 5278 | -8/Materials | Entered Factory 5278 | -7/Factory | Evolved 2 slots: Utility x2 5774 | -7/Factory | Identified exit to DSF 5885 | -7/Factory | Identified exit to Storage 5885 | -7/Factory | Identified exit to Lower Caves 6438 | -7/Factory | Build established: Scavenger-Mutant 6470 | -7/Factory | System corruption reached 10% 6551 | -7/Factory | Lost 9 parts (1p4n3u1w) 6661 | -7/Factory | Lost 3 parts (1p1n1w) 6904 | -7/Factory | Build established: Mutant 7397 | -7/Factory | Core integrity fell below 50% 7402 | -7/Factory | Entered Storage 7654 | -7/Storage | Core integrity fell below 20% 7699 | -7/Storage | System corruption reached 30% 7706 | -7/Storage | Lost 10 parts (3n5u2w) 7830 | -7/Storage | Destroyed by Y-54 Guardian with Flak Gun Last Messages --------------- 07754_ Y-54 Guardian destroyed. 07756_ Acquired 44 matter. 07759_ U-05 Engineer builds a Wall. 07762_ R-06 Scavenger collects Unknown Energy Gun. 07766_ R-06 Scavenger collects Imp. Light Armor Plating. 07778_ DWYX=WNTUI|=Z4/ =CSXVBYKP&9F/C| 07792_ K-01 Serf collects debris. 07793_ 8HW9UUS#ASOK3YZAMH|AGKM 07796_ K-01 Serf collects debris. 07801_ Acquired 3 matter. 07805_ K-01 Serf collects debris. 07809_ UGAWB>1K4PPFV 07824_ Connecting with Terminal... >>Alert(Purge) Purged threat record, alert level lowered. 07825_ System corrupted: Heat flow error (+190). 07825_ Y-54 Guardian Imp. Deuterium Engine blasted off. 07827_ System corrupted: Gauss Cannon jammed. 07830_ Aluminum Leg destroyed. Map ----- +----------------------------------------------------+ | | | | | | | | | | | | | | | | | | | | | ??????########???????????????? | | ?????? #??????????????? | | ?????? ""#??????????????? | | ???## """ ""#??????????????? | | ???# """ T"#??????????????? | | ????# """ ""#??????????????? | | ????# """ ""#?????########## | | ????# """ #?????# # | | ##### ####### """ # | | # #####+#### % # """ # | | ; """ ""# | | % ; ""# | | % % # """ Y"# | | +####### #### # """ ""# | | % ##"" #??####### """Y""# | | ####T #????????# @ %# | | ##??### #????????###"T"# ## | | #????# #??????????#######? | | !#????# #?????????????????? | | ]]#????# #?????????????????? | | ]]#????# #?????????????????? | | ###????# #?????????????????? | | ???????# #?????????????????? | | ???????# #?????????????????? | | ???????# +?????????????????? | | ???????# #?????????????????? | | ???????# ??????????????????? | | ???????# ??????????????????? | | ???????? ??????????????????? | | ?????????????????????????????? | | ?????????????????????????????? | | ?????????????????????????????? | | ?????????????????????????????? | | ?????????????????????????????? | | ?????????????????????????????? | | ?????????????????????????????? | | ?????????????????????????????? | | ?????????????????????????????? | | ?????????????????????????????? | | ?????????????????????????????? | +----------------------------------------------------+ Best States ------------- Heat Dissipation 62 Energy Generation 18 Energy Capacity 340 Matter Stores 300 Matter Capacity 300 Sight Range 16 Robot Scan Range 15 Terrain Scan Density 10 Armor Coverage 450 Resistance: KI 30 Propulsion Shielding 66 Utility Shielding 33 Weapon Cycling 15 Evasion (%) 55 Targeting Accuracy 6 Recoil Reduction 3 Particle Charging 15 Offensive Hacking 10 Defensive Hacking 10 Item Schematics ----------------- Lgt. Angular Momentum Engine | -8/Materials | Scanalyzed Hvy. Particle Cannon | -8/Materials | Scanalyzed Imp. Signal Interpreter | -8/Materials | Scanalyzed Robot Schematics ------------------ None Fabricated ------------ Nothing Alien Tech Used ----------------- None Achievements -------------- None Challenges ------------ None Game ------ Seed ForcePointBay Manual? 0 Play Time 01:21:58 Cumulative 1051.9 hours Start 2023.04.26 @ 01:16:01 End 2023.04.26 @ 03:19:29 Sessions 1 Manual Loads 0 Difficulty Rogue Special Mode None Game No. 229 Rogue 13 Adventurer 216 Explorer 0 Win Type - Total 5 Types 4/0/1/0/0/0/0/0/0 Lore% 71 Gallery% 84 Achievement% 66 Wizard Run 0 Options --------- ASCII 0 Keyboard 0 Movement Mouse Keybinds 0 Fullscreen 0 Font 16/SmallcapsGlow Map View 76x50 Tactical HUD 1 Map Filters NONE Filters BRIGHTNESS(125)|SATURATION(75)|LOW_CONTRAST(13,24,33)|SHIFT_HUE(130) Steam 1 RUN: 7c6cf101-234c-449a-b3ff-eda441eefa41